bitfinex/quotes_BTCUSD_20241223
["timestamp","ask_amount","ask_price","bid_price","bid_amount"]
[1734950332947,0.00029912,96027.0,96026.0,0.00685422]
[1734950333524,0.00029912,96027.0,96026.0,0.00585422]
[1734950333725,0.00129912,96027.0,96021.0,0.001]
[1734950333937,0.00129912,96027.0,96026.0,0.00585422]
[1734950334138,0.00029912,96027.0,96019.0,0.01298803]
[1734950334351,0.00029912,96027.0,96012.0,0.208306]
[1734950334542,0.00129912,96027.0,96012.0,0.208306]
[1734950334740,0.00129912,96027.0,96014.0,0.208302]
[1734950335177,0.00129912,96027.0,96015.0,0.00585464]
[1734950335507,0.00129912,96027.0,96012.0,0.208306]
[1734950335717,0.00129912,96027.0,96016.0,0.0058546]
[1734950335952,0.023,96025.0,96000.0,0.09311819]
[1734950336177,0.20958288,96024.0,96019.0,8.57e-05]
[1734950337592,0.41786388,96024.0,96019.0,8.57e-05]
[1734950337868,0.208289,96020.0,96019.0,8.57e-05]
[1734950338101,0.26378884,96020.0,96019.0,8.57e-05]
[1734950340048,0.26578884,96020.0,96019.0,8.57e-05]
[1734950340300,0.26778884,96020.0,96019.0,8.57e-05]
[1734950340572,0.26578884,96020.0,96019.0,8.57e-05]
[1734950340774,0.26578884,96020.0,96019.0,0.0010857]
[1734950340775,0.49938884,96020.0,96019.0,0.0010857]
[1734950340981,0.49738884,96020.0,96019.0,8.57e-05]
[1734950342484,0.59216153,96020.0,96019.0,0.0010857]
[1734950342698,0.59216153,96020.0,96019.0,8.57e-05]
[1734950342699,0.58716153,96020.0,96019.0,8.57e-05]
[1734950342909,0.59016153,96020.0,96019.0,8.57e-05]
[1734950343125,0.59516153,96020.0,96019.0,0.0010857]
[1734950343347,0.50238884,96020.0,96019.0,0.0010857]
[1734950343576,0.55078884,96020.0,96019.0,0.0010857]
[1734950347077,0.27109984,96020.0,96019.0,0.0010857]
[1734950347281,0.0886,96020.0,96019.0,0.0010857]
[1734950347487,0.2386,96020.0,96019.0,0.0010857]
[1734950347673,0.2386,96020.0,95999.0,0.0015238]
[1734950347886,0.00130192,96019.0,95999.0,0.0015238]
[1734950348102,0.00130192,96019.0,96000.0,0.00602677]
[1734950348686,0.00130192,96019.0,96005.0,0.416643]
[1734950348894,0.0806,96020.0,96005.0,0.416643]
[1734950349083,0.0806,96020.0,96006.0,0.00602654]
[1734950349084,0.00130192,96018.0,96006.0,0.00602654]
[1734950349284,0.00130192,96018.0,96007.0,0.208318]
[1734950349482,0.00130192,96018.0,96007.0,0.2143445]
[1734950350462,0.00130192,96018.0,96007.0,0.0060265]
[1734950350463,0.00430192,96018.0,96007.0,0.0060265]
[1734950350612,0.00130192,96018.0,96007.0,0.0060265]
[1734950350817,0.00130192,96017.0,96007.0,0.0060265]
[1734950351047,0.00130192,96019.0,96007.0,0.0060265]
[1734950351257,0.00130192,96019.0,95999.0,0.0015238]
[1734950351512,0.00130192,96019.0,95999.0,0.01495967]
[1734950351720,0.00130192,96019.0,96007.0,0.208317]
[1734950352123,0.001,96018.0,96008.0,0.00600019]
[1734950352331,0.00130192,96017.0,96008.0,0.00600019]
[1734950352761,0.00130192,96019.0,96009.0,0.208313]
[1734950352965,0.003,96018.0,96009.0,0.21434283]
[1734950353139,0.00130192,96017.0,96009.0,0.21434283]
[1734950353340,0.00130192,96017.0,96009.0,0.00602983]
[1734950353556,0.00130192,96017.0,96007.0,0.208317]
[1734950353768,0.00130192,96017.0,96010.0,0.00602979]
[1734950353969,0.00130192,96017.0,96007.0,0.208317]
[1734950354173,0.001,96018.0,96012.0,0.208307]
[1734950354387,0.001,96018.0,96015.0,0.2083]
[1734950354598,0.0001714,96022.0,96021.0,0.208287]
[1734950354979,0.0001714,96022.0,96021.0,0.21430071]
[1734950355183,0.0001714,96022.0,96021.0,0.00601371]
[1734950355581,0.0001714,96022.0,96016.0,0.208298]
[1734950355783,0.0001714,96022.0,96021.0,0.00601371]
[1734950355959,0.0001714,96022.0,96020.0,0.208289]
[1734950356166,0.0011714,96022.0,96021.0,0.00598673]
[1734950356369,0.0011714,96022.0,96020.0,0.208289]
[1734950356592,0.0011714,96022.0,96021.0,0.00598694]
[1734950356789,0.0001714,96022.0,96021.0,0.00598694]
[1734950357162,0.0031714,96022.0,96020.0,0.208289]
[1734950357371,0.0011714,96022.0,96021.0,0.00598694]
[1734950357571,0.0011714,96022.0,96020.0,0.208289]
[1734950357778,0.0011714,96022.0,96021.0,0.00598694]
[1734950358007,0.0021714,96022.0,96021.0,0.00598694]
[1734950358200,0.0021714,96022.0,96020.0,0.208289]
[1734950358403,0.0011714,96022.0,96021.0,0.00598694]
[1734950359487,0.0001714,96022.0,96021.0,0.00598694]
[1734950359723,0.0001714,96022.0,96020.0,0.208289]
[1734950364886,0.0001714,96022.0,96019.0,8.57e-05]
[1734950365106,0.0001714,96022.0,96020.0,0.208289]
[1734950365728,0.0011714,96022.0,96020.0,0.208289]
[1734950366368,0.0001714,96022.0,96020.0,0.209289]
[1734950367003,0.0021714,96022.0,96021.0,0.00592537]
[1734950367204,0.0001714,96022.0,96021.0,0.00592537]
[1734950367436,0.0001714,96022.0,96020.0,0.212289]
[1734950367664,0.0001714,96022.0,96021.0,0.00591076]
[1734950368082,0.0001714,96022.0,96020.0,0.208289]
[1734950368317,0.0001714,96022.0,96021.0,0.00591076]
[1734950368773,0.0001714,96022.0,96020.0,0.210289]
[1734950369006,0.0001714,96022.0,96021.0,0.00591076]
[1734950369225,0.0001714,96022.0,96021.0,0.05571076]
[1734950369429,0.0001714,96022.0,96021.0,0.0498]
[1734950369634,0.0001714,96022.0,96021.0,0.0458]
[1734950369843,0.0001714,96022.0,96021.0,0.06369248]
[1734950370702,0.0001714,96022.0,96021.0,0.08501577]
[1734950381798,0.00029912,96027.0,96022.0,0.41657]
[1734950382238,0.00029912,96027.0,96024.0,0.416562]
[1734950382721,0.00029912,96027.0,96026.0,0.208276]
[1734950383056,0.00029912,96027.0,96026.0,0.21406146]
[1734950385201,0.00029912,96027.0,96026.0,0.22006146]
[1734950385401,0.00029912,96027.0,96026.0,0.22306146]
[1734950390185,4e-07,96037.0,96036.0,0.487755]
[1734950390446,4e-07,96037.0,96036.0,0.587755]
[1734950390870,4e-07,96037.0,96036.0,0.00652013]
[1734950391292,0.078,96036.0,96026.0,0.006]
[1734950391528,0.078,96036.0,96035.0,0.14012134]
[1734950392641,0.078,96036.0,96018.0,0.01350499]
[1734950393282,0.078,96036.0,96026.0,0.208276]
[1734950396855,0.078,96036.0,96028.0,0.208272]
[1734950397197,0.078,96036.0,96029.0,0.00652551]
[1734950397831,0.078,96036.0,96026.0,0.208276]
[1734950398029,0.078,96036.0,96030.0,0.00656826]
[1734950398233,0.078,96036.0,96026.0,0.208276]
[1734950398456,0.078,96036.0,96031.0,0.00656823]
[1734950398604,0.078,96036.0,96026.0,0.208276]
[1734950398807,0.078,96036.0,96032.0,0.00656819]
[1734950399059,0.078,96036.0,96026.0,0.208276]
[1734950399675,0.078,96036.0,96027.0,0.00656838]
[1734950399878,0.078,96036.0,96022.0,8.57e-05]
[1734950400085,0.078,96036.0,96023.0,0.21485727]
[1734950401799,0.078,96036.0,96023.0,0.21485627]
[1734950401994,0.078,96036.0,96023.0,0.00657427]
[1734950402630,0.078,96036.0,96023.0,0.21485627]
[1734950404637,0.078,96036.0,96023.0,0.00657427]
[1734950404841,0.078,96036.0,96027.0,0.208272]
[1734950405069,0.078,96036.0,96024.0,0.208281]
[1734950405276,0.078,96036.0,96028.0,0.00663486]
[1734950405437,0.078,96036.0,96024.0,0.208281]
[1734950405639,0.078,96036.0,96029.0,0.00663482]
[1734950405846,0.078,96036.0,96022.0,8.57e-05]
[1734950406047,0.078,96036.0,96035.0,0.208257]
[1734950406250,4e-07,96037.0,96035.0,0.208257]
[1734950406571,4e-07,96037.0,96035.0,0.21488218]
[1734950407371,0.0001714,96036.0,96035.0,0.21488218]
[1734950408273,0.0001714,96036.0,96035.0,0.54698218]
[1734950408458,0.0001714,96036.0,96035.0,0.54998218]
[1734950408672,0.0001714,96036.0,96035.0,0.59898218]
[1734950408877,0.0001714,96036.0,96035.0,0.59598218]
[1734950409319,0.0001714,96036.0,96035.0,0.59998218]
[1734950409545,0.0001714,96036.0,96035.0,0.94523925]
[1734950409724,0.0001714,96036.0,96035.0,0.94723925]
[1734950410355,0.0001714,96036.0,96035.0,0.94523925]
[1734950410767,0.0001714,96036.0,96035.0,0.96644343]
[1734950410978,0.0001714,96036.0,96035.0,0.96244343]
[1734950411303,0.0001714,96036.0,96035.0,0.97144343]
[1734950411888,0.0001714,96036.0,96035.0,1.07144343]
[1734950412294,0.0009996,96036.0,96035.0,1.07744343]
[1734950412941,6e-07,96036.0,96035.0,1.07744343]
[1734950413152,6e-07,96036.0,96035.0,1.08828415]
[1734950413796,0.0756,96067.0,96048.0,0.1]
[1734950414001,0.07570006,96067.0,96066.0,0.20819]
[1734950414463,0.07570006,96067.0,96066.0,0.21491017]
[1734950418343,0.07570006,96067.0,96066.0,0.21791017]
[1734950418740,0.07570006,96067.0,96066.0,0.21491017]
[1734950419682,0.07587146,96067.0,96066.0,0.22191017]
[1734950419894,0.07587146,96067.0,96066.0,0.21491017]
[1734950420024,0.07587146,96067.0,96066.0,0.21891017]
[1734950420237,0.07587146,96067.0,96066.0,0.22591017]
[1734950420443,0.07587146,96067.0,96066.0,0.21891017]
[1734950420665,0.07587146,96067.0,96066.0,0.2401663]
[1734950421279,0.07587146,96067.0,96066.0,0.2361663]
[1734950421483,0.07587146,96067.0,96066.0,0.2391663]
[1734950421932,0.07587146,96067.0,96066.0,0.2431663]
[1734950422136,0.00027146,96067.0,96066.0,0.2431663]
[1734950422340,0.00027146,96067.0,96066.0,0.2391663]
[1734950422549,0.00027146,96067.0,96066.0,0.24961955]
[1734950422776,0.00027146,96067.0,96066.0,0.39661955]
[1734950423124,0.00027146,96067.0,96066.0,0.39961955]
[1734950424153,0.00027146,96067.0,96066.0,0.40661955]
[1734950424583,0.00027146,96067.0,96066.0,0.40361955]
[1734950424811,0.00027146,96067.0,96066.0,0.40861955]
[1734950425233,0.00027146,96067.0,96066.0,0.40361955]
[1734950425443,0.00027146,96067.0,96066.0,0.39661955]
[1734950425650,0.00127146,96067.0,96066.0,0.40361955]
[1734950425876,0.00127146,96067.0,96066.0,0.41261955]
[1734950426075,0.00127146,96067.0,96066.0,0.40361955]
[1734950426441,0.00127146,96067.0,96066.0,0.41261955]
[1734950427031,0.0001714,96116.0,96078.0,0.208164]
[1734950427248,0.0001714,96116.0,96099.0,0.10002299]
[1734950427249,0.0795,96104.0,96099.0,0.10002299]
[1734950427422,0.0795,96104.0,96103.0,0.20811]
[1734950427834,0.0795,96104.0,96103.0,0.21502287]
[1734950429035,0.0795,96104.0,96103.0,0.21702287]
[1734950429456,0.0795,96104.0,96103.0,0.22202287]
[1734950429863,0.00053397,96109.0,96103.0,0.22202287]
[1734950430072,0.00053397,96109.0,96104.0,0.208107]
[1734950430266,0.00053397,96109.0,96108.0,0.208099]
[1734950430492,0.00053397,96109.0,96108.0,0.21501168]
[1734950432397,0.00053397,96109.0,96108.0,0.36601168]
[1734950433124,0.00053397,96109.0,96108.0,0.46601168]
[1734950433545,0.00053397,96109.0,96108.0,0.47201168]
[1734950434327,0.00053397,96109.0,96108.0,0.47101168]
[1734950434558,0.00053397,96109.0,96108.0,0.49988936]
[1734950435464,0.00053397,96109.0,96108.0,0.47301168]
[1734950435681,0.00053397,96109.0,96108.0,0.49988936]
[1734950435885,0.00053397,96109.0,96108.0,0.47301168]
[1734950438811,0.00053397,96109.0,96108.0,0.46501168]
[1734950439094,0.00053397,96109.0,96108.0,0.47801168]
[1734950442216,0.0001714,96124.0,96110.0,0.1]
[1734950442411,0.00033146,96124.0,96123.0,0.208066]
[1734950442957,0.00033146,96124.0,96123.0,0.21523802]
[1734950444873,0.00033146,96124.0,96123.0,0.22023802]
[1734950445108,0.08083146,96124.0,96123.0,0.22023802]
[1734950448124,0.08083146,96124.0,96123.0,0.23100549]
[1734950448816,0.08083146,96124.0,96123.0,0.2521888]
[1734950449383,0.00033146,96124.0,96123.0,0.2521888]
[1734950450016,0.0001716,96126.0,96123.0,0.6102548]
[1734950450220,0.0001716,96126.0,96125.0,0.15]
[1734950450429,0.0001716,96126.0,96125.0,0.358062]
[1734950450430,4e-05,96126.0,96125.0,0.358062]
[1734950450629,4e-05,96126.0,96125.0,0.36520837]
[1734950451034,4e-07,96127.0,96126.0,0.15]
[1734950451269,4e-07,96127.0,96126.0,0.17687768]
[1734950451515,4e-07,96127.0,96126.0,0.18402399]
[1734950451758,4e-07,96127.0,96126.0,0.15714631]
[1734950452744,4e-07,96127.0,96126.0,0.16614631]
[1734950453093,0.00533466,96129.0,96128.0,0.1]
[1734950453349,0.0755,96153.0,96152.0,0.208003]
[1734950453597,0.07565997,96153.0,96152.0,0.208003]
[1734950453842,0.07565997,96153.0,96152.0,0.21510524]
[1734950454966,0.07565997,96153.0,96152.0,0.21710524]
[1734950455139,0.07565997,96153.0,96152.0,0.21510524]
[1734950455299,0.07565997,96153.0,96152.0,0.21710524]
[1734950458006,0.14555997,96153.0,96152.0,0.00910224]
[1734950458209,0.14555997,96153.0,96098.0,0.09258576]
[1734950458210,0.208036,96137.0,96098.0,0.09258576]
[1734950458485,0.023,96152.0,96111.0,0.208091]
[1734950458486,0.0833,96134.0,96111.0,0.208091]
[1734950458705,0.0833,96132.0,96111.0,0.208091]
[1734950458911,0.08460036,96131.0,96115.0,0.208082]
[1734950459329,0.08460036,96131.0,96117.0,0.208079]
[1734950459776,0.08460036,96131.0,96121.0,0.208069]
[1734950460163,0.08460036,96131.0,96117.0,0.208079]
[1734950460995,0.08460036,96131.0,96121.0,0.001]
[1734950462077,0.08460036,96131.0,96117.0,0.208079]
[1734950463381,0.08460036,96131.0,96116.0,0.01099528]
[1734950463589,0.08460036,96131.0,96117.0,0.208079]
[1734950463796,0.08660036,96131.0,96117.0,0.208079]
[1734950464199,0.08460036,96131.0,96117.0,0.208079]
[1734950464441,0.08660036,96131.0,96116.0,0.01099528]
[1734950464657,0.08660036,96131.0,96117.0,0.208079]
[1734950465702,0.08160036,96131.0,96117.0,0.208079]
[1734950465911,0.08160036,96131.0,96118.0,0.00842659]
[1734950466295,0.00130036,96130.0,96118.0,0.00842659]
[1734950467552,0.00330036,96130.0,96118.0,0.00842659]
[1734950467976,0.002,96130.0,96119.0,0.00104029]
[1734950468191,0.002,96130.0,96128.0,0.208054]
[1734950468400,0.002,96130.0,96129.0,0.00104011]
[1734950468606,0.002,96130.0,96129.0,0.00967306]
[1734950468821,0.0755,96139.0,96130.0,0.416102]
[1734950469026,0.0755,96139.0,96131.0,0.00104011]
[1734950469182,0.0755,96139.0,96131.0,0.00967287]
[1734950469388,0.0755,96139.0,96131.0,0.00104011]
[1734950469623,0.0755,96139.0,96137.0,0.208034]
[1734950469992,0.0755,96139.0,96138.0,0.00863212]
[1734950470418,0.0755,96139.0,96137.0,0.208034]
[1734950470598,0.0755,96139.0,96138.0,0.00863212]
[1734950471044,0.0755,96139.0,96124.0,0.208063]
[1734950471242,0.0765,96139.0,96138.0,0.00858243]
[1734950471448,0.0755,96139.0,96124.0,0.208063]
[1734950471856,0.0755,96139.0,96138.0,0.001]
[1734950472075,0.0755,96139.0,96125.0,0.00858444]
[1734950472275,0.0755,96139.0,96122.0,0.02087397]
[1734950472475,0.0755,96139.0,96126.0,0.00853425]
[1734950472690,0.0755,96139.0,96123.0,0.00853453]
[1734950472894,0.0755,96139.0,96127.0,0.00853416]
[1734950473090,0.0755,96139.0,96124.0,0.00853444]
[1734950473297,0.0755,96139.0,96128.0,0.00853407]
[1734950473526,0.0765,96139.0,96129.0,0.00853397]
[1734950473717,0.0755,96139.0,96129.0,0.00853397]
[1734950473980,0.0755,96139.0,96124.0,0.00104021]
[1734950474266,0.0765,96139.0,96130.0,0.00853388]
[1734950474472,0.0755,96139.0,96125.0,0.208062]
[1734950474662,0.0765,96139.0,96131.0,0.00853379]
[1734950474892,0.0765,96139.0,96122.0,0.02087397]
[1734950474893,0.001,96139.0,96132.0,0.00104008]
[1734950475102,0.001,96139.0,96137.0,0.208035]
[1734950475252,0.002,96139.0,96137.0,0.208035]
[1734950475459,0.002,96139.0,96138.0,0.00847909]
[1734950475663,0.002,96139.0,96138.0,0.00951917]
[1734950475861,0.002,96139.0,96138.0,0.00104008]
[1734950476063,0.002,96139.0,96138.0,0.00950917]
[1734950476268,0.002,96139.0,96138.0,0.15104008]
[1734950476429,8.56e-05,96152.0,96138.0,0.15950917]
[1734950476855,0.001,96139.0,96138.0,0.36754317]
[1734950477054,8.56e-05,96152.0,96151.0,0.208006]
[1734950477484,8.56e-05,96152.0,96151.0,0.21647389]
[1734950477736,8.56e-05,96152.0,96151.0,0.00846789]
[1734950478065,8.56e-05,96152.0,96149.0,0.208008]
[1734950478259,8.56e-05,96152.0,96151.0,0.00846789]
[1734950478484,8.56e-05,96152.0,96151.0,0.002]
[1734950478667,8.56e-05,96152.0,96151.0,0.01046789]
[1734950479697,8.56e-05,96152.0,96151.0,0.00950784]
[1734950479895,8.56e-05,96152.0,96151.0,0.01150784]
[1734950480529,8.56e-05,96152.0,96151.0,0.01350784]
[1734950480725,8.56e-05,96152.0,96151.0,0.01150784]
[1734950481118,8.56e-05,96152.0,96151.0,0.01450784]
[1734950481531,8.56e-05,96152.0,96151.0,0.00950784]
[1734950483386,8.56e-05,96152.0,96151.0,0.01050784]
[1734950483591,8.56e-05,96152.0,96151.0,0.00950784]
[1734950483795,8.56e-05,96152.0,96151.0,0.01250784]
[1734950485868,8.56e-05,96152.0,96151.0,0.01350784]
[1734950486667,8.56e-05,96152.0,96151.0,0.02086515]
[1734950487034,8.56e-05,96152.0,96151.0,0.02386515]
[1734950487442,8.56e-05,96152.0,96151.0,0.02486515]
[1734950487644,8.56e-05,96152.0,96151.0,0.02086515]
[1734950487851,8.56e-05,96152.0,96151.0,0.0198252]
[1734950488159,8.56e-05,96152.0,96151.0,0.02486512]
[1734950488397,8.56e-05,96152.0,96151.0,0.0198252]
[1734950488816,8.56e-05,96152.0,96151.0,0.02086512]
[1734950489219,8.56e-05,96152.0,96151.0,0.0198252]
[1734950489590,8.56e-05,96152.0,96151.0,0.0238252]
[1734950489837,8.56e-05,96152.0,96151.0,0.02486512]
[1734950490251,8.56e-05,96152.0,96151.0,0.02386512]
[1734950490448,8.56e-05,96152.0,96151.0,0.01986512]
[1734950490769,8.56e-05,96152.0,96151.0,0.02386512]
[1734950490953,8.56e-05,96152.0,96151.0,0.01986512]
[1734950491338,8.56e-05,96152.0,96151.0,0.02486512]
[1734950491540,8.56e-05,96152.0,96151.0,0.02086512]
[1734950491778,8.56e-05,96152.0,96151.0,0.01986512]
[1734950492311,8.56e-05,96152.0,96151.0,0.02286512]
[1734950493098,8.56e-05,96152.0,96151.0,0.03186512]
[1734950496148,8.56e-05,96152.0,96151.0,0.0308252]
[1734950496322,8.56e-05,96152.0,96151.0,0.03186499]
[1734950499413,0.07531677,96167.0,96152.0,0.208003]
[1734950499972,0.07531677,96167.0,96153.0,0.0085938]
[1734950500671,0.07531677,96167.0,96154.0,0.00103985]
[1734950501137,0.07531677,96167.0,96155.0,0.00859361]
[1734950501607,0.07531677,96167.0,96155.0,0.00103985]
[1734950501838,0.07631677,96167.0,96156.0,0.00857073]
[1734950502058,0.07531677,96167.0,96156.0,0.00857073]
[1734950502662,0.00129981,96166.0,96156.0,0.00857073]
[1734950503296,0.00129981,96166.0,96151.0,0.01035731]
[1734950503496,0.207975,96165.0,96151.0,0.01035731]
[1734950503744,0.207975,96165.0,96149.0,0.00103992]
[1734950503745,0.0012999,96164.0,96152.0,0.0085711]
[1734950503921,0.2092779,96164.0,96152.0,0.0085711]
[1734950504126,0.2092779,96164.0,96149.0,0.00103992]
[1734950504329,0.4172559,96164.0,96142.0,0.208025]
[1734950504572,0.207987,96160.0,96150.0,0.00857128]
[1734950504782,0.0805,96162.0,96144.0,0.01080074]
[1734950504783,0.207998,96155.0,96144.0,0.01080074]
[1734950505020,0.208001,96153.0,96142.0,0.00015997]
[1734950505228,0.208011,96149.0,96142.0,0.00015997]
[1734950505442,0.208011,96149.0,96143.0,0.00857193]
[1734950505653,0.208006,96151.0,96142.0,0.00015997]
[1734950506458,0.2846,96154.0,96142.0,0.00015997]
[1734950506810,0.2846,96154.0,96150.0,0.002]
[1734950506999,0.2846,96154.0,96142.0,0.00215997]
[1734950507194,0.2846,96154.0,96143.0,0.00857193]
[1734950507424,0.2846,96154.0,96142.0,0.00615997]
[1734950507624,0.2846,96154.0,96142.0,0.00015997]
[1734950507836,0.2856,96154.0,96143.0,0.00857193]
[1734950508166,0.2846,96154.0,96143.0,0.00857193]
[1734950508376,0.2846,96154.0,96142.0,0.00015997]
[1734950508922,0.00130005,96153.0,96143.0,0.00863951]
[1734950509051,0.290721,96144.0,96143.0,0.00863951]
[1734950509247,0.290721,96144.0,96142.0,0.0107855]
[1734950509605,0.290721,96144.0,96142.0,0.00015997]
[1734950510603,0.290721,96144.0,96142.0,0.00415997]
[1734950510807,0.0456,96143.0,96142.0,0.00415997]
[1734950511210,0.12960019,96143.0,96142.0,0.00415997]
[1734950511415,0.15260019,96143.0,96142.0,0.00415997]
[1734950511613,0.18506847,96143.0,96142.0,0.00415997]
[1734950511974,0.18506847,96143.0,96142.0,0.00315997]
[1734950512381,0.18506847,96143.0,96142.0,0.00415997]
[1734950512618,0.0827,96117.0,96116.0,0.08425931]
[1734950512824,0.12960054,96117.0,96116.0,0.08425931]
[1734950513044,0.12960054,96117.0,96116.0,0.00875082]
[1734950513454,0.12960054,96117.0,96108.0,8.56e-05]
[1734950513657,0.12960055,96117.0,96108.0,0.00024566]
[1734950514087,0.208081,96116.0,96108.0,0.00024566]
[1734950514508,0.1283,96117.0,96108.0,0.00024566]
[1734950514734,0.0827,96117.0,96108.0,0.00024566]
[1734950514940,0.08400045,96127.0,96110.0,0.208094]
[1734950515166,0.0827,96127.0,96111.0,0.00993092]
[1734950515362,0.0827,96127.0,96113.0,0.208088]
[1734950515586,0.0827,96127.0,96118.0,0.208076]
[1734950515995,0.0827,96127.0,96119.0,0.00889025]
[1734950516653,0.0867,96127.0,96119.0,0.00889025]
[1734950517088,0.0857,96127.0,96120.0,0.00889015]
[1734950517268,0.0827,96127.0,96120.0,0.00889015]
[1734950517470,0.0827,96127.0,96115.0,0.208082]
[1734950517665,0.0827,96127.0,96121.0,0.00889006]
[1734950517874,0.0827,96127.0,96115.0,0.208082]
[1734950518070,0.0827,96127.0,96122.0,0.00888997]
[1734950518275,0.0827,96127.0,96111.0,0.208091]
[1734950518490,0.29076,96127.0,96123.0,0.00888988]
[1734950518692,0.29176,96127.0,96112.0,0.0010403]
[1734950518892,0.29176,96127.0,96124.0,0.00887546]
[1734950519133,0.29076,96127.0,96114.0,0.0010403]
[1734950519315,0.208062,96125.0,96108.0,0.01066982]
[1734950519516,0.208072,96121.0,96115.0,0.00887722]
[1734950519671,0.0013005,96120.0,96108.0,0.01066982]
[1734950520082,0.0013005,96120.0,96109.0,0.00887778]
[1734950520637,0.1243,96117.0,96109.0,0.00887778]
[1734950520848,0.00130056,96116.0,96109.0,0.00887778]
[1734950521057,0.1243,96117.0,96109.0,0.00887778]
[1734950521058,0.0763,96117.0,96109.0,0.00887778]
[1734950521254,0.0763,96117.0,96110.0,0.208094]
[1734950521695,0.0763,96117.0,96111.0,0.00888696]
[1734950522440,0.0763,96117.0,96110.0,0.208094]
[1734950522649,0.0763,96117.0,96112.0,0.00888913]
[1734950522852,0.0763,96117.0,96111.0,0.00888923]
[1734950523051,0.0763,96117.0,96113.0,0.00888904]
[1734950523267,0.0763,96117.0,96112.0,0.00888913]
[1734950523523,0.0763,96117.0,96110.0,0.208094]
[1734950523697,0.0763,96117.0,96113.0,0.00888904]
[1734950523895,0.0763,96117.0,96113.0,0.416176]
[1734950524119,0.0763,96117.0,96114.0,0.0089296]
[1734950524319,0.0763,96117.0,96112.0,0.001]
[1734950524516,0.0763,96117.0,96115.0,0.00892951]
[1734950524717,0.01629897,96118.0,96110.0,0.208093]
[1734950524920,0.0803,96126.0,96111.0,0.0010404]
[1734950525147,0.0803,96126.0,96111.0,0.00997028]
[1734950525352,0.0803,96126.0,96111.0,0.0010404]
[1734950525668,0.0803,96126.0,96117.0,0.208077]
[1734950526086,0.0803,96126.0,96113.0,0.209087]
[1734950526087,0.00130037,96125.0,96118.0,0.00892818]
[1734950526294,0.00130037,96125.0,96113.0,0.001]
[1734950526713,0.00130037,96125.0,96112.0,8.56e-05]
[1734950527182,0.00130037,96125.0,96113.0,0.00892965]
[1734950527678,0.00330037,96125.0,96113.0,0.00892965]
[1734950528427,0.208073,96120.0,96113.0,0.00892965]
[1734950528847,0.208073,96120.0,96112.0,8.56e-05]
[1734950529113,0.001,96125.0,96112.0,8.56e-05]
[1734950529334,0.20936446,96124.0,96112.0,8.56e-05]
[1734950529750,0.20936446,96124.0,96113.0,0.00892965]
[1734950530063,0.001,96120.0,96113.0,0.00892965]
[1734950531241,0.00230046,96124.0,96113.0,0.00892965]
[1734950531894,0.001,96124.0,96119.0,0.208074]
[1734950532120,0.001,96124.0,96119.0,0.208073]
[1734950532334,0.001,96124.0,96120.0,0.0089311]
[1734950532544,0.00130037,96131.0,96120.0,0.0089311]
[1734950532761,0.001,96124.0,96120.0,0.0089311]
[1734950533147,0.001,96124.0,96121.0,0.00893101]
[1734950533538,0.001,96124.0,96120.0,0.002]
[1734950533737,0.001,96124.0,96122.0,0.00893092]
[1734950533971,0.001,96124.0,96121.0,0.00893101]
[1734950534291,0.00130037,96131.0,96122.0,0.00893092]
[1734950534778,0.00130037,96131.0,96120.0,0.002]
[1734950535238,0.00130037,96131.0,96121.0,0.00893101]
[1734950535526,0.00130037,96131.0,96121.0,0.01093101]
[1734950535746,0.00130037,96131.0,96121.0,0.00893101]
[1734950535975,0.00330037,96131.0,96121.0,0.00893101]
[1734950536171,0.00330037,96131.0,96117.0,0.208079]
[1734950536292,0.00130037,96131.0,96122.0,0.00893092]
[1734950536499,0.00230037,96131.0,96118.0,0.208077]
[1734950536730,0.00230037,96131.0,96123.0,0.0089231]
[1734950536944,0.001,96131.0,96122.0,0.208068]
[1734950537156,0.001,96131.0,96124.0,0.008923]
[1734950537371,0.001,96131.0,96128.0,0.208055]
[1734950537597,0.002,96131.0,96130.0,0.208051]
[1734950537825,0.002,96131.0,96130.0,0.21696858]
[1734950538046,0.001,96131.0,96130.0,0.21696858]
[1734950539138,0.0815,96145.0,96130.0,0.21696858]
[1734950539429,0.0815,96145.0,96140.0,0.208028]
[1734950539964,0.0815,96145.0,96142.0,0.208025]
[1734950540172,0.0815,96145.0,96142.0,0.41605]
[1734950540370,0.0753,96153.0,96143.0,0.00884691]
[1734950540580,0.00130014,96152.0,96143.0,0.00884691]
[1734950540786,0.003,96145.0,96143.0,0.00884691]
[1734950540981,0.003,96145.0,96144.0,0.208021]
[1734950541402,0.003,96145.0,96144.0,0.21686803]
[1734950541811,0.003,96145.0,96144.0,0.00884703]
[1734950542017,0.00130013,96152.0,96144.0,0.00884703]
[1734950542293,0.00130013,96152.0,96130.0,0.03151132]
[1734950542494,0.004,96145.0,96131.0,0.0010401]
[1734950542645,0.004,96145.0,96131.0,0.00988833]
[1734950542856,0.005,96145.0,96131.0,0.00988833]
[1734950543085,0.0803,96144.0,96132.0,0.208047]
[1734950543431,0.00130018,96143.0,96132.0,0.21689514]
[1734950544694,0.0803,96144.0,96132.0,0.00884814]
[1734950545110,0.0803,96144.0,96129.0,0.0213036]
[1734950545111,0.0803,96144.0,96133.0,0.208045]
[1734950545324,0.0803,96144.0,96133.0,0.42493805]
[1734950545741,0.001,96143.0,96133.0,0.42493805]
[1734950545961,0.001,96143.0,96137.0,0.208035]
[1734950546391,0.001,96143.0,96138.0,0.00884758]
[1734950546536,0.0813,96144.0,96138.0,0.00884758]
[1734950546740,0.0813,96144.0,96137.0,0.208035]
[1734950546960,0.001,96143.0,96139.0,0.00884749]
[1734950547172,0.001,96143.0,96138.0,0.00884758]
[1734950547492,0.001,96143.0,96139.0,0.00884749]
[1734950547899,0.001,96143.0,96137.0,0.208035]
[1734950548099,0.001,96143.0,96140.0,0.0088474]
[1734950548299,0.001,96143.0,96137.0,0.208035]
[1734950548502,0.00330018,96143.0,96141.0,0.00884731]
[1734950548721,0.00330018,96143.0,96137.0,0.208035]
[1734950548722,0.00130018,96143.0,96137.0,0.208035]
[1734950548884,0.00130018,96143.0,96142.0,0.00884721]
[1734950549083,0.00130018,96143.0,96137.0,0.209035]
[1734950549278,0.00130018,96143.0,96142.0,0.00884721]
[1734950549479,0.00130018,96143.0,96137.0,0.21852867]
[1734950549792,0.00130018,96143.0,96142.0,0.00884721]
[1734950550000,0.00130018,96143.0,96137.0,0.21852867]
[1734950550176,0.00130018,96143.0,96142.0,0.00884721]
[1734950550823,0.00130018,96143.0,96137.0,0.21952867]
[1734950551275,0.00130018,96143.0,96138.0,0.00879038]